bitfinex/quotes_BTCUSD_20240815
["timestamp","ask_amount","ask_price","bid_price","bid_amount"]
[1723726022029,0.123,59398.0,59395.0,0.08577727]
[1723726022243,0.01194546,59399.0,59395.0,0.08577727]
[1723726022451,0.168353,59399.0,59395.0,0.08577727]
[1723726022690,0.1,59404.0,59395.0,0.08577727]
[1723726022691,0.168356,59398.0,59395.0,0.08577727]
[1723726022900,0.3814,59408.0,59395.0,0.08577727]
[1723726023129,0.05141834,59405.0,59401.0,0.08577727]
[1723726023328,0.43988854,59406.0,59401.0,0.08577727]
[1723726023534,0.023,59405.0,59401.0,0.08577727]
[1723726023750,0.525352,59409.0,59401.0,0.08577727]
[1723726023751,0.4111,59414.0,59401.0,0.08577727]
[1723726024009,0.17155454,59413.0,59412.0,0.08577727]
[1723726024453,0.17155454,59413.0,59401.0,0.08577727]
[1723726024454,0.18870999,59413.0,59401.0,0.08577727]
[1723726024665,0.5972,59422.0,59407.0,0.08577727]
[1723726024882,0.22293835,59417.0,59407.0,0.08577727]
[1723726025066,0.336613,59416.0,59407.0,0.08577727]
[1723726025299,0.168308,59415.0,59407.0,0.08577727]
[1723726025514,0.10139005,59414.0,59401.0,0.08577727]
[1723726025735,0.336606,59417.0,59401.0,0.08577727]
[1723726025736,0.64104062,59413.0,59401.0,0.001]
[1723726025946,0.05138608,59412.0,59402.0,0.08577727]
[1723726026155,0.19455454,59411.0,59402.0,0.08577727]
[1723726026370,0.168327,59408.0,59402.0,0.08577727]
[1723726026591,0.06570406,59410.0,59402.0,0.08577727]
[1723726026592,0.191332,59407.0,59402.0,0.08577727]
[1723726026806,0.023,59407.0,59402.0,0.08577727]
[1723726027029,0.023,59408.0,59402.0,0.08577727]
[1723726027685,0.17155454,59408.0,59402.0,0.08577727]
[1723726027890,0.023,59412.0,59407.0,0.001]
[1723726027891,0.368635,59412.0,59407.0,0.001]
[1723726028104,0.17155454,59411.0,59407.0,0.001]
[1723726028327,0.023,59410.0,59402.0,0.08577727]
[1723726028540,0.005,59408.0,59402.0,0.08577727]
[1723726028765,0.007,59408.0,59403.0,0.5775]
[1723726029051,0.007,59408.0,59404.0,0.3944]
[1723726029265,0.007,59408.0,59404.0,0.562738]
[1723726029266,0.005,59408.0,59404.0,0.562738]
[1723726029475,0.005,59408.0,59407.0,0.001]
[1723726030980,0.000826,59418.0,59417.0,1.31579054]
[1723726031188,0.000826,59418.0,59417.0,0.97918654]
[1723726031850,0.000826,59418.0,59417.0,1.31579054]
[1723726032496,0.001826,59418.0,59417.0,1.31579054]
[1723726032709,0.001826,59418.0,59417.0,0.97918654]
[1723726032921,0.001826,59418.0,59417.0,0.81088454]
[1723726033129,0.005826,59418.0,59417.0,1.98899854]
[1723726033336,0.005826,59418.0,59417.0,1.65239454]
[1723726033546,0.001826,59418.0,59417.0,1.65239454]
[1723726033724,0.002826,59418.0,59417.0,0.81488454]
[1723726033957,0.001826,59418.0,59417.0,0.81488454]
[1723726034167,0.000826,59418.0,59417.0,0.81088454]
[1723726034395,0.000826,59418.0,59417.0,0.82888454]
[1723726034396,0.001826,59418.0,59417.0,0.82888454]
[1723726034820,0.001826,59418.0,59417.0,0.97918654]
[1723726035039,0.002826,59418.0,59417.0,0.65533]
[1723726036230,0.002826,59418.0,59417.0,0.4128]
[1723726036482,0.023826,59418.0,59411.0,0.1859]
[1723726036755,0.001826,59418.0,59417.0,0.004]
[1723726036990,0.0419204,59418.0,59410.0,0.08577727]
[1723726037239,0.0419204,59418.0,59406.0,0.03373]
[1723726037240,0.426426,59418.0,59406.0,0.03373]
[1723726037471,0.595725,59418.0,59417.0,0.004]
[1723726037706,0.6870388,59418.0,59417.0,0.012]
[1723726037932,0.023826,59418.0,59417.0,0.012]
[1723726038178,0.023826,59418.0,59402.0,0.46577727]
[1723726038179,0.024826,59418.0,59402.0,0.46577727]
[1723726038412,0.001826,59418.0,59408.0,0.08577727]
[1723726038642,0.002826,59418.0,59408.0,0.08577727]
[1723726038886,0.025826,59418.0,59416.0,0.3915]
[1723726039097,0.024826,59418.0,59415.0,0.08577727]
[1723726039347,0.025826,59418.0,59415.0,0.08577727]
[1723726039803,0.016826,59418.0,59416.0,0.5856]
[1723726040041,0.001826,59418.0,59416.0,0.5856]
[1723726040525,0.001826,59418.0,59417.0,0.17155454]
[1723726040738,0.000826,59418.0,59417.0,0.17155454]
[1723726040944,0.000826,59418.0,59416.0,0.5856]
[1723726040945,0.003826,59418.0,59416.0,0.5856]
[1723726041153,0.000826,59418.0,59416.0,0.5856]
[1723726041588,0.000826,59418.0,59416.0,0.5886]
[1723726042031,0.000826,59418.0,59416.0,0.76015454]
[1723726042241,0.000826,59418.0,59416.0,0.5886]
[1723726042506,0.000826,59418.0,59417.0,0.006]
[1723726043779,0.000826,59418.0,59416.0,0.3888]
[1723726043780,0.000826,59418.0,59416.0,0.003]
[1723726043994,0.000826,59418.0,59409.0,1.2579]
[1723726044203,0.84151,59417.0,59416.0,0.006]
[1723726044470,0.2077,59417.0,59416.0,0.006]
[1723726044683,0.544304,59417.0,59409.0,1.2579]
[1723726044902,0.2492839,59416.0,59409.0,1.2579]
[1723726045121,0.4175899,59416.0,59409.0,1.2579]
[1723726045331,0.25253244,59416.0,59408.0,0.08577727]
[1723726045769,0.168308,59415.0,59408.0,0.08577727]
[1723726046004,0.023,59414.0,59408.0,0.08577727]
[1723726046461,0.023,59415.0,59408.0,0.08577727]
[1723726046691,0.023,59416.0,59414.0,0.08577727]
[1723726046901,0.037649,59418.0,59414.0,0.67273181]
[1723726046902,0.000826,59418.0,59414.0,0.67273181]
[1723726047121,0.000826,59418.0,59414.0,0.87203181]
[1723726047559,0.001,59416.0,59414.0,0.87203181]
[1723726048198,0.000826,59418.0,59414.0,0.87203181]
[1723726048414,0.003826,59418.0,59414.0,0.08577727]
[1723726049501,0.003826,59418.0,59415.0,0.00193199]
[1723726049686,0.003826,59418.0,59417.0,0.546402]
[1723726049905,0.003826,59418.0,59417.0,0.54965454]
[1723726050114,0.000826,59418.0,59417.0,1.05456054]
[1723726050478,0.000826,59418.0,59417.0,1.24256054]
[1723726050562,0.000826,59418.0,59417.0,1.57916454]
[1723726050760,0.000826,59418.0,59417.0,1.24256054]
[1723726051004,0.000826,59418.0,59417.0,2.50046054]
[1723726051233,0.000826,59418.0,59417.0,3.20739854]
[1723726051448,0.000826,59418.0,59417.0,2.87079454]
[1723726051866,0.000826,59418.0,59417.0,3.27079454]
[1723726052043,0.000826,59418.0,59417.0,3.27479454]
[1723726052524,0.000826,59418.0,59417.0,3.28179454]
[1723726052733,0.000826,59418.0,59417.0,2.88179454]
[1723726052937,0.000826,59418.0,59417.0,2.54519054]
[1723726053371,0.3082,59431.0,59430.0,0.579265]
[1723726053569,0.3198814,59438.0,59432.0,0.168257]
[1723726053777,0.3198814,59438.0,59433.0,0.25733181]
[1723726054263,0.3198814,59438.0,59434.0,0.17155454]
[1723726054561,0.3198814,59438.0,59433.0,0.25733181]
[1723726054809,0.3198814,59438.0,59430.0,1.667248]
[1723726054810,0.3148814,59438.0,59430.0,1.667248]
[1723726055073,0.3198814,59438.0,59431.0,0.394]
[1723726055309,0.3198814,59438.0,59437.0,0.08577727]
[1723726055310,0.3148814,59438.0,59437.0,0.08577727]
[1723726055537,0.3158814,59438.0,59437.0,0.08577727]
[1723726056236,0.3158814,59438.0,59431.0,0.81959281]
[1723726056457,0.3158814,59438.0,59431.0,0.47977727]
[1723726056699,0.3148814,59438.0,59430.0,1.256248]
[1723726056870,0.74241454,59438.0,59430.0,1.256248]
[1723726057087,0.74241454,59438.0,59431.0,0.003]
[1723726057297,0.023,59437.0,59431.0,0.003]
[1723726057710,0.023,59437.0,59426.0,1.256248]
[1723726057911,0.023,59437.0,59430.0,0.003]
[1723726058132,0.11396674,59437.0,59431.0,0.08577727]
[1723726058339,0.023,59437.0,59431.0,0.08577727]
[1723726058571,0.3148814,59438.0,59433.0,0.4046]
[1723726058808,0.3148814,59438.0,59433.0,0.57615454]
[1723726059048,0.3148814,59438.0,59433.0,0.4046]
[1723726059233,0.3148814,59438.0,59432.0,0.08577727]
[1723726059730,0.4208,59437.0,59427.0,0.03373]
[1723726059942,0.031,59437.0,59429.0,0.08577727]
[1723726060152,0.031,59437.0,59426.0,1.256248]
[1723726060153,0.023,59437.0,59426.0,1.256248]
[1723726060404,0.1852,59436.0,59426.0,1.256248]
[1723726060589,0.023,59435.0,59426.0,1.256248]
[1723726060803,0.023,59435.0,59428.0,0.08577727]
[1723726061041,0.028,59437.0,59428.0,1.34202527]
[1723726061246,0.023,59437.0,59428.0,1.34202527]
[1723726061461,0.024,59437.0,59428.0,1.34202527]
[1723726061664,0.007,59436.0,59434.0,0.08577727]
[1723726061841,0.007,59436.0,59434.0,0.47947727]
[1723726062741,0.007,59436.0,59435.0,0.08577727]
[1723726062943,0.001826,59437.0,59435.0,0.08577727]
[1723726063146,0.000826,59437.0,59435.0,0.08577727]
[1723726063353,0.001826,59437.0,59428.0,1.34202527]
[1723726063558,0.001826,59437.0,59434.0,0.08577727]
[1723726063765,0.001,59436.0,59435.0,0.3822]
[1723726063949,0.001,59436.0,59435.0,1.638448]
[1723726065030,0.001,59436.0,59435.0,1.640448]
[1723726065449,0.000826,59437.0,59435.0,1.640448]
[1723726066272,0.000826,59437.0,59435.0,1.258248]
[1723726066483,0.21701574,59436.0,59422.0,1.37575527]
[1723726066692,0.023,59435.0,59422.0,1.37575527]
[1723726066904,0.023,59435.0,59422.0,1.54730981]
[1723726067321,0.023,59435.0,59422.0,1.37575527]
[1723726067537,0.023,59435.0,59422.0,1.34202527]
[1723726067736,0.3905,59434.0,59422.0,1.34202527]
[1723726067945,0.0831926,59433.0,59422.0,1.34202527]
[1723726068154,0.023,59433.0,59422.0,1.34202527]
[1723726068359,0.023,59433.0,59428.0,0.08577727]
[1723726068561,0.023,59434.0,59428.0,0.08577727]
[1723726068737,0.023,59435.0,59428.0,0.08577727]
[1723726068952,0.035,59435.0,59428.0,0.08577727]
[1723726069491,0.012,59435.0,59429.0,0.17155454]
[1723726069695,0.012,59435.0,59428.0,0.08577727]
[1723726069976,0.013,59435.0,59429.0,1.256248]
[1723726070191,0.001,59435.0,59429.0,1.256248]
[1723726070406,0.009,59433.0,59429.0,1.256248]
[1723726070883,0.000826,59437.0,59429.0,1.257248]
[1723726070884,0.001,59435.0,59429.0,1.257248]
[1723726071127,0.63047074,59434.0,59429.0,1.257248]
[1723726071355,0.5988,59434.0,59429.0,1.256248]
[1723726071573,0.023,59433.0,59429.0,1.256248]
[1723726071796,0.001,59433.0,59429.0,1.256248]
[1723726072023,0.024,59433.0,59429.0,1.256248]
[1723726072497,0.024,59433.0,59431.0,0.08577727]
[1723726072498,0.001,59433.0,59431.0,0.08577727]
[1723726072708,0.001,59433.0,59432.0,1.42780254]
[1723726072927,0.309026,59437.0,59432.0,1.42780254]
[1723726073361,0.008,59435.0,59432.0,1.42780254]
[1723726073566,0.008,59435.0,59432.0,1.256248]
[1723726073567,0.001,59434.0,59432.0,1.256248]
[1723726074042,0.001,59434.0,59426.0,1.256248]
[1723726074043,0.5883,59433.0,59426.0,1.256248]
[1723726074487,0.023,59432.0,59427.0,0.08577727]
[1723726074723,0.310026,59437.0,59427.0,0.08577727]
[1723726074724,0.001,59434.0,59427.0,0.08577727]
[1723726075168,0.309026,59437.0,59427.0,0.08577727]
[1723726075373,0.006,59433.0,59427.0,0.08577727]
[1723726075564,0.006,59433.0,59428.0,0.17155454]
[1723726076400,0.006,59433.0,59429.0,1.441648]
[1723726076607,0.001,59434.0,59431.0,0.168261]
[1723726076819,0.001,59434.0,59429.0,1.441648]
[1723726076820,0.309026,59437.0,59433.0,0.08577727]
[1723726077030,0.001,59434.0,59433.0,0.08577727]
[1723726077253,0.309026,59437.0,59433.0,0.08577727]
[1723726078089,0.309026,59437.0,59434.0,0.17155454]
[1723726080162,0.687826,59437.0,59429.0,1.256248]
[1723726080365,0.687826,59437.0,59433.0,0.08577727]
[1723726080366,0.692826,59437.0,59433.0,0.08577727]
[1723726080523,0.314026,59437.0,59434.0,0.17155454]
[1723726080724,0.314026,59437.0,59435.0,0.3923]
[1723726080926,0.314026,59437.0,59436.0,0.17155454]
[1723726081146,0.314026,59437.0,59436.0,1.42780254]
[1723726081335,0.309026,59437.0,59436.0,1.256248]
[1723726081546,0.299026,59437.0,59436.0,1.256248]
[1723726081735,0.304026,59437.0,59436.0,1.256248]
[1723726082100,0.294926,59437.0,59428.0,1.256248]
[1723726082298,0.701926,59437.0,59428.0,1.42780254]
[1723726082422,0.701926,59437.0,59433.0,0.08577727]
[1723726082654,0.189,59436.0,59433.0,0.08577727]
[1723726083690,0.299926,59437.0,59433.0,0.08577727]
[1723726083890,0.299926,59437.0,59434.0,0.17155454]
[1723726084119,0.299926,59437.0,59433.0,0.08577727]
[1723726084120,0.289926,59437.0,59433.0,0.08577727]
[1723726084494,0.004,59436.0,59433.0,0.08577727]
[1723726084708,0.004,59436.0,59424.0,0.703759]
[1723726084709,0.4141,59435.0,59425.0,0.03373]
[1723726084880,0.4171,59435.0,59422.0,0.03373]
[1723726085153,0.4171,59435.0,59433.0,0.001]
[1723726085327,0.290926,59437.0,59433.0,0.001]
[1723726086305,0.17155454,59436.0,59422.0,0.03373]
[1723726086581,0.17155454,59436.0,59420.0,0.08597986]
[1723726086582,0.336502,59435.0,59420.0,0.08597986]
[1723726086735,0.336502,59435.0,59420.0,0.00020259]
[1723726086736,0.336567,59424.0,59420.0,0.00020259]
[1723726086944,0.336551,59427.0,59420.0,0.00020259]
[1723726087146,0.517058,59425.0,59420.0,0.00020259]
[1723726087352,0.336565,59424.0,59420.0,0.00020259]
[1723726087574,0.191285,59423.0,59420.0,0.00020259]
[1723726087776,0.023,59423.0,59420.0,0.00020259]
[1723726087992,0.3983,59423.0,59420.0,0.00220259]
[1723726088191,0.16829,59421.0,59420.0,0.00020259]
[1723726088427,0.504871,59421.0,59420.0,0.00020259]
[1723726088620,0.864452,59421.0,59420.0,0.00020259]
[1723726088827,1.18143174,59421.0,59420.0,0.00020259]
[1723726089037,1.58543174,59421.0,59420.0,0.00020259]
[1723726089317,2.44819374,59421.0,59420.0,0.00020259]
[1723726089532,2.21161274,59421.0,59420.0,0.00020259]
[1723726089761,1.87503174,59421.0,59420.0,0.00020259]
[1723726090378,1.3668962,59421.0,59420.0,0.00020259]
[1723726090648,1.72960654,59421.0,59420.0,0.00120259]
[1723726091304,2.07918754,59421.0,59420.0,0.00120259]
[1723726092764,1.40602554,59421.0,59420.0,0.00120259]
[1723726092960,0.6066,59421.0,59420.0,0.00120259]
[1723726093197,1.60660654,59421.0,59420.0,0.00020259]
[1723726093435,1.76726719,59421.0,59420.0,0.00020259]
[1723726093657,1.78126719,59421.0,59420.0,0.00020259]
[1723726093860,1.76726719,59421.0,59420.0,0.00120259]
[1723726094066,1.79026719,59421.0,59420.0,0.00120259]
[1723726094269,1.80426719,59421.0,59420.0,0.00120259]
[1723726094475,1.80426719,59421.0,59420.0,0.00020259]
[1723726094476,1.79026719,59421.0,59420.0,0.00020259]
[1723726094887,0.94881519,59421.0,59420.0,0.00020259]
[1723726095120,0.5915,59426.0,59420.0,0.00020259]
[1723726095461,0.4582,59427.0,59420.0,0.00020259]
[1723726095462,0.289926,59427.0,59423.0,0.08577727]
[1723726095672,0.289926,59427.0,59420.0,0.18600259]
[1723726095673,0.3955,59426.0,59421.0,0.08577727]
[1723726095911,0.3955,59426.0,59420.0,0.00020259]
[1723726096137,0.2368226,59425.0,59420.0,0.00020259]
[1723726096354,0.33657,59423.0,59420.0,0.00020259]
[1723726096578,0.1807,59422.0,59420.0,0.00020259]
[1723726096793,0.1807,59422.0,59420.0,0.00120259]
[1723726096794,0.99377215,59421.0,59420.0,0.00120259]
[1723726096992,1.85948754,59421.0,59420.0,0.00120259]
[1723726097195,1.43488,59412.0,59411.0,0.0009086]
[1723726097398,1.72943454,59412.0,59411.0,0.0009086]
[1723726097625,1.72943454,59412.0,59394.0,0.4]
[1723726097626,0.1908,59400.0,59394.0,0.4]
[1723726097827,0.1908,59400.0,59384.0,0.0009086]
[1723726097828,0.3889,59395.0,59384.0,0.0009086]
[1723726098022,0.336735,59394.0,59384.0,0.0009086]
[1723726098247,0.33674,59393.0,59384.0,0.0009086]
[1723726098462,0.191367,59394.0,59384.0,0.0009086]
[1723726098593,0.023,59394.0,59384.0,0.0009086]
[1723726099025,0.168392,59385.0,59384.0,0.0009086]
[1723726099422,0.94264654,59385.0,59384.0,0.0009086]
[1723726099637,1.61621654,59385.0,59384.0,0.0009086]
[1723726099846,0.77425454,59385.0,59384.0,0.0009086]
[1723726100048,1.27943154,59385.0,59384.0,0.0009086]
[1723726100321,1.10426609,59385.0,59384.0,0.0019086]
[1723726100750,1.44105109,59385.0,59384.0,0.0009086]
[1723726100951,1.77883609,59385.0,59384.0,0.0009086]
[1723726101085,1.10526609,59385.0,59384.0,0.0039086]
[1723726101297,1.77783609,59385.0,59384.0,0.0039086]
[1723726101507,1.78483609,59385.0,59384.0,0.0009086]
[1723726101709,1.88483609,59385.0,59384.0,0.0009086]
[1723726103639,2.22862109,59385.0,59384.0,0.0009086]
[1723726104048,1.73021654,59385.0,59384.0,0.0009086]
[1723726104274,2.06700154,59385.0,59384.0,0.0009086]
[1723726104610,0.916145,59377.0,59376.0,0.009086]
[1723726104767,1.74092954,59377.0,59376.0,0.009086]
[1723726105147,0.123,59377.0,59376.0,0.009086]
[1723726105360,0.5978,59390.0,59376.0,0.009086]
[1723726105621,0.168373,59392.0,59388.0,0.08577727]
[1723726105820,0.168373,59392.0,59376.0,0.009086]
[1723726105821,0.17155454,59391.0,59376.0,0.009086]
[1723726106022,0.33679,59385.0,59376.0,0.009086]
[1723726106223,0.168397,59384.0,59376.0,0.009086]
[1723726106406,0.168399,59383.0,59376.0,0.009086]
[1723726106604,0.168398,59383.0,59376.0,0.009086]
[1723726106800,0.3966,59384.0,59376.0,0.009086]
[1723726106801,0.0929778,59382.0,59376.0,0.009086]
[1723726107007,0.3966,59384.0,59376.0,0.009086]
[1723726107223,0.3966,59389.0,59376.0,0.009086]
[1723726107434,0.3966,59389.0,59376.0,0.010086]
[1723726107435,0.014,59384.0,59376.0,0.010086]
[1723726107638,0.014,59384.0,59383.0,0.08577727]
[1723726107863,0.1,59397.0,59383.0,0.08577727]
[1723726108071,0.21054714,59395.0,59383.0,0.07577727]
[1723726108280,0.014,59384.0,59383.0,0.07577727]
[1723726109021,0.014,59384.0,59377.0,0.5868]
[1723726109269,0.014,59384.0,59381.0,0.08577727]
[1723726109532,0.014,59384.0,59377.0,0.5868]
[1723726109533,0.014,59391.0,59377.0,0.3871]
[1723726109775,0.168394,59385.0,59376.0,0.009086]
[1723726110027,0.33994954,59384.0,59383.0,0.001]
[1723726110260,0.67674054,59384.0,59383.0,0.001]
[1723726110461,0.168402,59382.0,59376.0,0.009086]
[1723726110678,0.023,59381.0,59376.0,0.009086]
[1723726110900,0.336825,59378.0,59377.0,0.001]
[1723726111142,1.47344154,59378.0,59377.0,0.001]
[1723726111361,0.842075,59377.0,59376.0,0.009086]
[1723726111567,0.46296954,59377.0,59376.0,0.009086]
[1723726112011,0.79979954,59377.0,59376.0,0.009086]
[1723726112483,0.29455454,59377.0,59376.0,0.009086]
[1723726112714,0.38093545,59377.0,59376.0,0.009086]
[1723726112926,0.88618045,59377.0,59376.0,0.010086]
[1723726113187,1.74714045,59377.0,59376.0,0.010086]
[1723726113420,1.74714045,59377.0,59376.0,0.009086]
[1723726113665,1.41031045,59377.0,59376.0,0.009086]
[1723726113918,1.41031045,59377.0,59376.0,0.010086]
[1723726113919,0.49085454,59377.0,59376.0,0.010086]
[1723726114167,0.67226954,59377.0,59376.0,0.010086]
[1723726114385,0.67226954,59377.0,59376.0,0.009086]
[1723726114386,1.00009954,59377.0,59376.0,0.009086]
[1723726114612,1.00009954,59377.0,59376.0,0.010086]
[1723726114613,2.41308954,59377.0,59376.0,0.010086]
[1723726114836,0.842117,59374.0,59373.0,0.009086]
[1723726115067,1.94771854,59374.0,59373.0,0.009086]
[1723726115291,3.14106554,59374.0,59373.0,0.009086]
[1723726115511,3.31262008,59374.0,59373.0,0.009086]
[1723726116008,2.97577308,59374.0,59373.0,0.009086]
[1723726116246,2.46737154,59374.0,59373.0,0.009086]
[1723726116976,0.85975454,59374.0,59373.0,0.009086]
[1723726117216,0.84575454,59374.0,59373.0,0.009086]
[1723726117449,0.87375454,59374.0,59373.0,0.009086]
[1723726117694,1.51692489,59374.0,59373.0,0.009086]
[1723726117943,1.36502454,59374.0,59373.0,0.009086]
[1723726118205,1.68787154,59374.0,59373.0,0.009086]
[1723726118447,2.38456554,59374.0,59373.0,0.009086]
[1723726119621,2.41020906,59374.0,59373.0,0.009086]
[1723726119865,1.515915,59370.0,59369.0,0.009086]
[1723726120100,2.86066954,59370.0,59369.0,0.009086]
[1723726120333,2.96066954,59370.0,59369.0,0.009086]
[1723726121083,2.98366954,59370.0,59369.0,0.009086]
[1723726121286,3.18322408,59370.0,59369.0,0.009086]
[1723726121490,2.67479954,59370.0,59369.0,0.009086]
[1723726121705,2.66079954,59370.0,59369.0,0.009086]
[1723726122129,1.179223,59361.0,59352.0,0.009064]
[1723726122336,1.84907754,59361.0,59352.0,0.009064]
[1723726122544,1.51215654,59361.0,59352.0,0.009064]
[1723726122752,1.68371108,59361.0,59352.0,0.009064]
[1723726122964,2.20973208,59361.0,59352.0,0.009064]
[1723726123168,1.87281108,59361.0,59352.0,0.009064]
[1723726123374,2.20973208,59361.0,59352.0,0.009064]
[1723726123595,1.70125654,59361.0,59352.0,0.009064]
[1723726123821,0.114,59361.0,59356.0,0.1991]
[1723726124031,0.572,59374.0,59360.0,0.396986]
[1723726124252,0.17155454,59373.0,59363.0,0.08577727]
[1723726124459,0.168435,59371.0,59363.0,0.08577727]
[1723726124723,0.17155454,59370.0,59363.0,0.08577727]
[1723726124939,0.15165543,59373.0,59360.0,0.009086]
[1723726124940,0.16846,59361.0,59360.0,0.009086]
[1723726125155,0.18555454,59361.0,59360.0,0.009086]
[1723726125370,1.08447199,59361.0,59360.0,0.009086]
[1723726125793,0.74755099,59361.0,59360.0,0.009086]
[1723726126015,0.71393554,59361.0,59360.0,0.009086]
[1723726126249,0.014,59361.0,59360.0,0.407786]
[1723726126506,0.1,59371.0,59360.0,0.009086]
[1723726126769,0.336895,59366.0,59360.0,0.009086]
[1723726127007,0.336905,59364.0,59360.0,0.009086]
[1723726127236,0.17846,59361.0,59360.0,0.009086]
[1723726127447,0.36401454,59361.0,59360.0,0.009086]
[1723726127653,0.37701454,59361.0,59360.0,0.009086]
[1723726127864,1.15593949,59361.0,59360.0,0.009086]
[1723726128074,2.19346049,59361.0,59360.0,0.009086]
[1723726128587,0.123,59361.0,59360.0,0.009086]
[1723726128783,0.34001454,59361.0,59360.0,0.009086]
[1723726129040,1.53045654,59361.0,59360.0,0.009086]
[1723726129273,1.86737754,59361.0,59360.0,0.009086]
[1723726129502,2.39199854,59361.0,59360.0,0.009086]
[1723726129748,2.57755308,59361.0,59360.0,0.009086]
[1723726129963,2.60055308,59361.0,59360.0,0.004086]
[1723726130170,2.59155308,59361.0,59360.0,0.004086]
[1723726130445,2.94913818,59361.0,59360.0,0.004086]
[1723726130658,3.00053983,59361.0,59360.0,0.004086]
[1723726131157,3.01453983,59361.0,59360.0,0.004086]
[1723726131370,2.66361883,59361.0,59360.0,0.004086]
[1723726132695,2.67761883,59361.0,59360.0,0.004086]
[1723726134058,1.72055819,59361.0,59360.0,0.004086]
[1723726134297,2.00607754,59361.0,59360.0,0.004086]
[1723726134539,2.39436562,59361.0,59360.0,0.004086]
[1723726134765,2.05744462,59361.0,59360.0,0.004086]
[1723726135026,2.39436562,59361.0,59360.0,0.004086]
[1723726135273,2.20599916,59361.0,59360.0,0.004086]
[1723726135796,2.30599916,59361.0,59360.0,0.004086]
[1723726136584,2.32899916,59361.0,59360.0,0.004086]
[1723726137316,2.32899916,59361.0,59352.0,0.009064]
[1723726137317,1.179381,59353.0,59352.0,0.009064]
[1723726137551,1.47393554,59353.0,59352.0,0.009064]
[1723726137792,1.62132909,59353.0,59352.0,0.009064]
[1723726138509,1.95829509,59353.0,59352.0,0.009064]
[1723726139085,1.62132909,59353.0,59352.0,0.009064]
[1723726139357,1.13696954,59353.0,59352.0,0.009064]
[1723726139603,1.14396954,59353.0,59352.0,0.009064]
[1723726140112,1.48093554,59353.0,59352.0,0.009064]
[1723726140336,1.49293554,59353.0,59352.0,0.009064]
[1723726140541,1.64338104,59353.0,59352.0,0.009064]
[1723726141386,2.35554704,59353.0,59352.0,0.009064]
[1723726141579,2.40694185,59353.0,59352.0,0.009064]
[1723726141801,2.40694185,59353.0,59333.0,1.4]
[1723726141802,1.179759,59334.0,59333.0,1.4]
[1723726142015,3.78378754,59334.0,59333.0,0.96187213]
[1723726142235,4.26228157,59334.0,59333.0,0.58666815]
[1723726142449,4.26228157,59334.0,59311.0,0.0002]
[1723726142450,0.01,59326.0,59311.0,0.0002]
[1723726142704,0.3,59328.0,59311.0,0.0002]
[1723726142705,1.251982,59314.0,59311.0,0.0002]
[1723726142919,0.843097,59305.0,59304.0,0.51466362]
[1723726143125,0.1,59305.0,59304.0,1.08856362]
[1723726143337,0.1,59311.0,59304.0,0.5699]
[1723726143558,0.168612,59308.0,59304.0,0.5699]
[1723726143774,0.14401665,59307.0,59304.0,0.5699]
[1723726144013,0.1,59307.0,59305.0,0.08577727]
[1723726144219,0.1,59311.0,59305.0,0.08577727]
[1723726144437,0.337116,59327.0,59306.0,0.00294512]
[1723726144649,0.19455454,59324.0,59313.0,0.08577727]
[1723726144861,0.19455454,59324.0,59314.0,0.1921]
[1723726144862,0.1,59323.0,59314.0,0.1921]
[1723726145089,0.19455454,59322.0,59314.0,0.1921]
[1723726145300,0.1,59321.0,59315.0,0.08914879]
[1723726145953,0.1,59321.0,59314.0,0.1921]
[1723726146377,0.1,59321.0,59315.0,0.3882]
[1723726146626,0.0268572,59320.0,59315.0,0.3882]
[1723726147058,0.01,59321.0,59315.0,0.3882]
[1723726147280,0.01,59321.0,59317.0,0.3882]
[1723726147489,0.5625,59342.0,59317.0,0.3882]
[1723726147702,0.014,59321.0,59317.0,0.3882]
[1723726147910,0.014,59321.0,59318.0,0.08577727]
[1723726148121,0.026,59321.0,59318.0,0.08577727]
[1723726148356,0.026,59321.0,59318.0,0.07577727]
[1723726148577,0.012,59321.0,59319.0,0.382]
[1723726148787,0.012,59321.0,59320.0,0.5742]
[1723726149884,0.1,59334.0,59320.0,0.5742]
[1723726150092,0.08771485,59333.0,59320.0,0.5742]
[1723726150570,0.08771485,59333.0,59324.0,0.08577727]
[1723726150789,0.35103,59342.0,59324.0,0.08577727]
[1723726150790,0.028,59342.0,59331.0,0.4062]
[1723726151006,0.014,59342.0,59340.0,0.08577727]
[1723726151224,0.168508,59345.0,59341.0,0.3968]
[1723726151445,0.168512,59343.0,59341.0,0.3968]
[1723726151656,0.168514,59342.0,59341.0,0.3968]
[1723726151892,0.33694,59358.0,59341.0,0.3968]
[1723726152105,0.17155454,59357.0,59344.0,0.08577727]
[1723726152328,0.17155454,59357.0,59345.0,0.1816]
[1723726152963,0.33695,59356.0,59345.0,0.1816]
[1723726153172,0.33695,59356.0,59342.0,0.08577727]
[1723726153173,0.168498,59348.0,59342.0,0.08577727]
[1723726153381,0.34005254,59348.0,59342.0,0.08577727]
[1723726153618,0.014,59345.0,59342.0,0.08577727]
[1723726153838,0.022,59345.0,59342.0,0.08577727]
[1723726154057,0.505543,59342.0,59341.0,0.3968]
[1723726154264,0.168514,59342.0,59341.0,0.3968]
[1723726154494,0.29455454,59342.0,59336.0,0.3794]
[1723726154699,0.29455454,59342.0,59337.0,0.08577727]
[1723726154700,0.30330999,59341.0,59337.0,0.08577727]
[1723726154914,0.023,59340.0,59337.0,0.08577727]
[1723726156023,0.19151,59344.0,59337.0,0.08577727]
[1723726156239,0.268511,59343.0,59337.0,0.08577727]
[1723726156444,0.023,59342.0,59337.0,0.08561448]
[1723726156858,0.007,59342.0,59337.0,0.08561448]
[1723726157108,0.023,59341.0,59337.0,0.08561448]
[1723726157310,0.036,59341.0,59337.0,0.08561448]
[1723726157751,0.023,59341.0,59337.0,0.08561448]
[1723726157967,0.036,59342.0,59337.0,0.08546144]
[1723726158169,0.17155454,59341.0,59336.0,0.3794]